bitfinex/quotes_ETHUSD_20250420
["timestamp","ask_amount","ask_price","bid_price","bid_amount"]
[1745185313924,1.41111303,1586.1,1586.0,54.19587483]
[1745185316325,2.73083542,1586.1,1586.0,54.19587483]
[1745185316535,8.87083542,1586.1,1586.0,54.19587483]
[1745185316701,7.60876312,1585.7,1585.6,5.284]
[1745185317026,10.6094633,1585.6,1585.5,5.284]
[1745185317231,0.55,1585.2,1584.4,0.801]
[1745185317396,11.93343289,1585.2,1584.6,0.801]
[1745185318429,12.41557237,1585.2,1584.6,0.801]
[1745185320536,6.21886553,1585.2,1584.6,0.801]
[1745185320699,6.14,1585.5,1584.8,0.801]
[1745185320895,5.91696736,1585.8,1585.0,3.0]
[1745185321129,5.91696736,1585.8,1585.1,0.801]
[1745185321432,0.55,1585.7,1585.1,0.801]
[1745185321611,5.91696736,1585.8,1585.1,0.801]
[1745185321931,0.55,1585.7,1585.1,0.801]
[1745185322233,5.99580061,1585.8,1585.1,0.801]
[1745185322468,0.55,1585.7,1585.1,0.801]
[1745185324338,0.55,1585.7,1585.2,0.16731196]
[1745185324524,0.55,1585.7,1585.3,5.285]
[1745185324707,1.2512079,1585.7,1585.4,0.16731196]
[1745185324912,1.2512079,1585.7,1585.3,5.285]
[1745185325234,1.2512079,1585.7,1585.4,0.16731196]
[1745185325430,1.2512079,1585.7,1585.5,54.012]
[1745185325741,1.2512079,1585.7,1585.6,0.16731196]
[1745185328458,6.14,1586.0,1585.7,0.759]
[1745185328660,0.4069731,1586.2,1585.8,5.34805186]
[1745185328962,0.32815827,1586.2,1585.9,0.92631196]
[1745185329323,6.21880735,1586.3,1585.9,0.92631196]
[1745185329528,11.38337471,1586.3,1585.9,0.92631196]
[1745185331965,11.30456736,1586.3,1585.9,0.98935782]
[1745185332269,11.38337468,1586.3,1585.9,0.92631196]
[1745185337845,12.65709215,1586.3,1585.9,0.92631196]
[1745185338047,12.57828483,1586.3,1585.9,0.92631196]
[1745185338344,12.57828483,1586.3,1586.0,53.999]
[1745185338557,12.57828483,1586.3,1586.1,0.15050336]
[1745185338758,13.12828483,1586.3,1586.2,5.284]
[1745185339182,13.12828483,1586.3,1586.2,5.43450336]
[1745185349383,13.12828483,1586.3,1586.2,5.43350336]
[1745185352862,16.91598483,1586.3,1586.2,5.43350336]
[1745185353067,23.21996263,1586.3,1586.2,5.283]
[1745185353934,10.64247271,1586.1,1586.0,53.999]
[1745185354083,3.55,1585.7,1585.3,0.8278]
[1745185354265,5.71456736,1585.5,1585.4,5.283]
[1745185354763,6.17549945,1585.5,1585.4,5.283]
[1745185355396,6.17549945,1585.5,1585.4,59.278]
[1745185355602,6.87970369,1585.5,1585.4,59.278]
[1745185355798,16.01970369,1585.5,1585.4,59.40423383]
[1745185356095,23.11456231,1585.5,1585.4,59.40423383]
[1745185356504,0.55,1585.0,1584.9,59.288]
[1745185356701,16.07802388,1585.0,1584.9,5.284]
[1745185356911,15.99914826,1585.0,1584.9,5.284]
[1745185357296,16.80944826,1585.0,1584.9,5.284]
[1745185357491,19.63772872,1585.0,1584.9,5.284]
[1745185357692,13.32858046,1585.0,1584.9,5.284]
[1745185357910,9.69,1585.0,1584.9,5.284]
[1745185358116,6.69,1585.0,1584.9,5.284]
[1745185359604,6.14,1585.0,1584.9,5.284]
[1745185359809,11.30456736,1585.3,1585.0,0.8073]
[1745185361481,11.30456736,1585.3,1585.0,0.87038443]
[1745185361807,11.30456736,1585.3,1585.0,0.8073]
[1745185363181,11.30456736,1585.3,1585.0,0.87038441]
[1745185363382,11.30456736,1585.3,1585.0,0.8073]
[1745185365509,5.16456736,1585.3,1585.0,0.8073]
[1745185368729,6.14,1585.4,1585.0,0.8073]
[1745185368906,0.55,1585.5,1585.1,0.06307488]
[1745185369113,0.55,1585.5,1585.2,0.7937]
[1745185369280,0.55,1585.5,1585.3,59.319]
[1745185380933,0.07884283,1585.6,1585.3,59.319]
[1745185381130,6.53244039,1585.7,1585.3,59.319]
[1745185381306,8.15468443,1585.7,1585.3,59.319]
[1745185389232,8.15468443,1585.7,1585.4,5.296]
[1745185393940,8.15468443,1585.7,1585.5,54.018]
[1745185398737,11.70468443,1585.7,1585.6,5.296]
[1745185403551,11.70468443,1585.7,1585.6,59.314]
[1745185414965,10.87678443,1585.7,1585.6,59.314]
[1745185415265,10.79794877,1585.7,1585.6,59.314]
[1745185417262,8.01651332,1585.7,1585.6,59.314]
[1745185417633,15.62830442,1585.7,1585.6,59.314]
[1745185419571,7.6117911,1585.7,1585.6,59.314]
[1745185419731,7.6117911,1585.7,1585.6,60.1372]
[1745185425379,0.07882672,1586.0,1585.6,60.1372]
[1745185425554,0.55,1586.0,1585.6,60.1372]
[1745185426884,1.381,1586.0,1585.6,60.1372]
[1745185427606,0.55,1586.0,1585.6,60.1372]
[1745185428244,1.86135731,1586.0,1585.6,60.1372]
[1745185430675,0.55,1586.0,1585.6,60.1372]
[1745185430855,0.55,1586.0,1585.7,0.8621533]
[1745185432249,0.55,1586.0,1585.7,0.7991]
[1745185432453,6.14,1586.1,1585.7,0.7991]
[1745185432757,3.07881058,1586.2,1585.7,0.7991]
[1745185432959,4.22410086,1586.3,1585.7,0.7991]
[1745185433152,4.22410086,1586.3,1585.9,0.7814]
[1745185433358,4.22410086,1586.3,1586.1,0.7814]
[1745185435485,4.22410086,1586.3,1586.1,0.84443511]
[1745185435783,4.22410086,1586.3,1586.1,0.7814]
[1745185436656,6.14,1586.6,1586.1,0.7814]
[1745185437064,0.55,1586.5,1586.1,0.7814]
[1745185437266,0.55,1586.3,1586.0,5.283]
[1745185437467,1.3394,1586.1,1586.0,5.283]
[1745185437677,12.99499497,1586.1,1586.0,5.282]
[1745185437864,0.55,1585.9,1585.6,54.018]
[1745185438066,6.76883553,1585.8,1585.7,5.282]
[1745185438375,15.7188226,1585.8,1585.7,5.282]
[1745185438573,21.94630585,1585.8,1585.7,5.282]
[1745185438885,0.55,1585.5,1584.5,0.7911]
[1745185439086,0.55,1585.3,1584.5,3.7911]
[1745185439803,0.55,1585.3,1584.5,0.7911]
[1745185440900,0.55,1585.3,1584.6,0.7911]
[1745185442870,0.7894,1585.4,1584.7,3.0]
[1745185443069,0.55,1585.5,1584.8,0.85417539]
[1745185444614,6.9294,1585.8,1585.0,5.16058707]
[1745185444772,4.22410086,1585.9,1585.3,0.7911]
[1745185444975,4.22410086,1585.9,1585.4,0.06305561]
[1745185445294,4.22410086,1585.9,1585.5,0.7911]
[1745185445612,0.55,1586.0,1585.6,5.284]
[1745185447810,10.36410086,1586.1,1585.6,5.284]
[1745185448111,6.14,1586.1,1585.6,5.284]
[1745185448606,3.0,1586.2,1585.6,5.284]
[1745185448812,3.89499871,1586.2,1585.6,5.284]
[1745185451685,0.55,1586.1,1585.6,5.284]
[1745185452001,0.62880819,1586.1,1585.6,5.284]
[1745185452917,0.62880819,1586.1,1585.7,54.002]
[1745185453205,0.55,1585.9,1585.7,54.002]
[1745185453410,0.62882579,1585.9,1585.7,54.002]
[1745185453912,0.7843,1586.0,1585.7,54.002]
[1745185454119,6.14,1586.1,1585.7,54.7867]
[1745185454619,5.30811208,1586.2,1585.7,54.7867]
[1745185454789,5.22929871,1586.2,1585.7,54.7867]
[1745185455714,0.52292987,1586.1,1585.7,54.7867]
[1745185455908,0.78,1585.9,1585.7,54.002]
[1745185456102,0.55,1585.8,1585.7,54.002]
[1745185456303,9.76882129,1585.8,1585.7,59.285]
[1745185456514,18.97829923,1585.8,1585.7,59.285]
[1745185456720,18.89947794,1585.8,1585.7,59.285]
[1745185456884,1.33,1585.5,1585.3,54.001]
[1745185457095,7.54885053,1585.5,1585.4,5.283]
[1745185457594,7.47,1585.5,1585.4,5.283]
[1745185457806,6.69,1585.5,1585.4,5.283]
[1745185462228,0.55,1585.5,1585.4,5.283]
[1745185462424,9.14,1585.6,1585.4,5.283]
[1745185462824,6.14,1585.6,1585.4,5.283]
[1745185463130,5.11909957,1586.2,1585.5,0.8325]
[1745185463131,6.14,1586.0,1585.5,0.8325]
[1745185463294,0.07881479,1586.1,1585.5,0.8325]
[1745185463490,3.0,1586.1,1585.5,0.8325]
[1745185464100,3.0,1586.1,1585.4,11.283]
[1745185464101,4.22410086,1586.2,1585.6,0.89554714]
[1745185465630,0.55,1586.2,1585.6,0.89554714]
[1745185468835,6.14,1586.3,1585.6,0.8325]
[1745185469045,6.14,1586.3,1585.7,0.8325]
[1745185469246,5.16058707,1586.6,1585.9,0.8325]
[1745185469452,8.16058707,1586.6,1586.0,0.06303167]
[1745185469748,6.9227,1586.7,1586.1,54.8154]
[1745185469948,6.14,1586.7,1586.2,5.359]
[1745185471034,5.23936661,1586.8,1586.2,5.359]
[1745185471241,5.16058707,1586.8,1586.2,5.359]
[1745185471628,5.23936461,1586.8,1586.2,5.359]
[1745185472696,0.55,1586.7,1586.1,54.8154]
[1745185472811,0.55,1586.5,1586.3,5.359]
[1745185473016,5.7893874,1586.4,1586.3,5.359]
[1745185473425,22.06476783,1586.4,1586.1,54.002]
[1745185473730,15.8467623,1586.2,1586.1,54.002]
[1745185473933,18.68372333,1586.2,1586.1,59.36]
[1745185474954,8.71058707,1586.2,1586.1,59.36]
[1745185475154,6.14,1586.3,1586.1,59.36]
[1745185475450,12.13238707,1586.7,1586.1,59.36]
[1745185475652,12.13238707,1586.7,1586.2,0.06303425]
[1745185475653,12.21117989,1586.7,1586.2,0.06303425]
[1745185475812,12.13238707,1586.9,1586.3,0.7577]
[1745185476019,4.21323871,1586.8,1586.3,0.7577]
[1745185476213,0.62877958,1586.7,1586.3,0.7577]
[1745185476460,5.78936665,1586.7,1586.4,5.358]
[1745185476657,0.07877958,1586.7,1586.4,5.358]
[1745185476881,6.07117322,1587.1,1586.4,5.358]
[1745185477089,6.59950439,1587.1,1586.4,5.358]
[1745185477447,1.43891732,1587.1,1586.4,5.358]
[1745185477780,4.22410086,1587.3,1586.5,0.7616]
[1745185478480,0.55,1587.2,1586.5,0.7616]
[1745185479155,5.78934408,1587.2,1586.5,3.7616]
[1745185479362,6.85121648,1587.0,1586.5,0.7616]
[1745185479574,0.55,1586.8,1586.6,5.358]
[1745185480389,6.69,1586.8,1586.6,5.358]
[1745185480684,0.62878522,1586.7,1586.6,5.358]
[1745185481083,0.55,1586.7,1586.6,5.358]
[1745185484764,0.55,1586.6,1586.1,54.8066]
[1745185485087,6.76879557,1586.6,1586.2,5.42003645]
[1745185485254,6.76879557,1586.6,1586.2,5.357]
[1745185486182,1.3429,1586.4,1585.8,0.8046]
[1745185486369,1.3429,1586.4,1585.9,59.339]
[1745185486371,9.85463004,1586.2,1585.9,59.339]
[1745185486574,0.55,1586.0,1585.9,53.982]
[1745185486766,0.55,1586.0,1585.9,59.339]
[1745185488461,6.14,1586.5,1586.0,0.7528]
[1745185488684,5.10500086,1587.4,1586.2,0.7528]
[1745185488962,0.5311715,1587.3,1586.5,0.7528]
[1745185489163,0.5311715,1587.3,1586.6,0.06300805]
[1745185489363,0.5311715,1587.3,1586.7,59.346]
[1745185489364,0.55,1587.2,1586.7,59.346]
[1745185489566,0.5311715,1587.3,1586.8,0.06300806]
[1745185489770,4.22410086,1586.8,1586.7,59.346]
[1745185490381,5.19651095,1586.8,1586.7,59.346]
[1745185490597,20.98780392,1586.8,1586.7,59.346]
[1745185490773,27.12780392,1586.8,1586.7,59.346]
[1745185493184,22.90370306,1586.8,1586.7,59.346]
[1745185494903,23.3716918,1586.8,1586.7,59.346]
[1745185495410,16.05171164,1586.8,1586.7,59.346]
[1745185495790,12.95763671,1587.1,1586.7,60.0988]
[1745185496099,6.14,1587.1,1586.8,0.06301722]
[1745185496973,4.22410086,1587.2,1586.8,0.06301722]
[1745185498008,6.76876292,1587.3,1586.8,0.06301722]
[1745185498213,0.55,1587.2,1586.8,0.06301722]
[1745185498988,9.93627784,1587.2,1586.7,54.7408]
[1745185499193,1.3433,1587.0,1586.8,5.541]
[1745185499406,21.77977447,1586.9,1586.8,5.541]
[1745185499596,22.49429585,1586.9,1586.8,5.541]
[1745185499998,22.97354535,1586.9,1586.8,5.541]
[1745185500313,6.85199142,1586.8,1586.7,53.988]
[1745185500515,12.99199142,1586.8,1586.7,59.529]
[1745185500904,6.69,1586.8,1586.7,59.529]
[1745185501099,6.76878553,1586.8,1586.7,59.529]
[1745185501694,13.07077695,1586.8,1586.7,59.529]
[1745185501889,16.17226942,1586.8,1586.7,59.529]
[1745185502918,19.17226942,1586.8,1586.7,59.529]
[1745185516633,25.80326942,1586.8,1586.7,59.529]
[1745185516837,19.17226942,1586.8,1586.7,59.529]
[1745185519318,19.17226942,1586.8,1586.7,5.541]
[1745185523542,19.93386942,1586.8,1586.7,5.541]
[1745185526236,9.85278583,1586.6,1586.5,53.988]
[1745185526438,9.93157958,1586.6,1586.5,59.53]
[1745185526732,11.55499466,1586.6,1586.5,59.53]
[1745185527130,17.26439621,1586.6,1586.5,59.53]
[1745185527419,17.10023511,1586.6,1586.5,59.53]
[1745185529650,23.24023511,1586.6,1586.5,59.53]
[1745185544058,18.08173539,1586.6,1586.5,59.53]
[1745185544359,23.24023511,1586.6,1586.5,59.53]
[1745185546861,29.2227857,1586.6,1586.5,59.53]
[1745185552972,24.99868484,1586.6,1586.5,59.53]
[1745185555285,25.24828484,1586.6,1586.5,59.53]
[1745185557786,31.87928484,1586.6,1586.5,59.53]
[1745185557956,25.24828484,1586.6,1586.5,59.53]
[1745185558154,28.40337045,1586.6,1586.5,59.53]
[1745185559376,28.40337045,1586.6,1586.5,5.542]
[1745185572481,28.40337045,1586.6,1586.5,6.3238]
[1745185572482,10.23699929,1586.6,1586.5,6.3238]
[1745185572685,3.63146481,1586.6,1586.5,6.3238]
[1745185573056,3.63146481,1586.6,1586.5,6.38682266]
[1745185573659,3.63146481,1586.6,1586.5,6.3238]
[1745185576895,0.2496,1586.6,1586.5,6.3238]
[1745185579897,0.2496,1586.6,1586.5,6.38681755]
[1745185580193,0.2496,1586.6,1586.5,6.3238]
[1745185580362,0.2496,1586.6,1586.5,6.38681756]
[1745185580553,0.2496,1586.6,1586.5,6.3238]
[1745185580894,0.2496,1586.6,1586.5,6.38681754]
[1745185581081,0.2496,1586.6,1586.5,6.38681309]
[1745185581276,0.2496,1586.6,1586.5,6.3238]
[1745185591604,0.7996,1586.6,1586.5,6.3238]
[1745185591807,1.11753566,1586.6,1586.5,5.542]
[1745185592010,4.6639633,1586.6,1586.5,5.542]
[1745185592206,11.78154913,1586.6,1586.5,5.542]
[1745185593004,17.92154913,1586.6,1586.5,5.542]
[1745185593306,8.40686334,1586.6,1586.5,5.542]
[1745185593506,3.7996,1586.6,1586.5,5.542]
[1745185593698,8.95686334,1586.6,1586.5,5.542]
[1745185593897,9.03565426,1586.6,1586.5,5.542]
[1745185594207,9.84995426,1586.6,1586.5,5.542]
[1745185594388,11.46519339,1586.6,1586.5,5.542]
[1745185596913,11.93625918,1586.6,1586.5,5.542]
[1745185597214,18.07625918,1586.6,1586.5,5.542]
[1745185597418,17.99746826,1586.6,1586.5,5.542]
[1745185597915,17.18316826,1586.6,1586.5,5.542]
[1745185605128,18.01326826,1586.6,1586.5,5.542]
[1745185606526,24.31605409,1586.6,1586.5,5.542]
[1745185607869,18.01326826,1586.6,1586.5,5.542]
[1745185612610,15.56792913,1586.6,1586.5,5.542]
[1745185613334,12.79125239,1586.6,1586.5,5.542]
[1745185618234,13.59555239,1586.6,1586.5,5.542]
[1745185622104,13.34595239,1586.6,1586.5,5.356]
[1745185623644,12.54165239,1586.6,1586.5,5.356]
[1745185629932,8.5205866,1586.6,1586.5,5.356]
[1745185630139,2.3805866,1586.6,1586.5,6.126]
[1745185632254,2.3805866,1586.8,1586.6,0.77]
[1745185647977,2.3805866,1586.8,1586.7,53.975]
[1745185652928,2.3805866,1586.8,1586.7,59.287]
[1745185665325,2.3805866,1586.8,1586.7,60.0689]
[1745185676948,3.1654866,1586.8,1586.7,59.287]
[1745185677124,2.3805866,1586.8,1586.7,59.287]
[1745185681924,2.3805866,1586.8,1586.7,60.0392]
[1745185685365,10.38029838,1587.2,1586.7,60.0392]
[1745185685661,2.3805866,1587.1,1586.7,60.0392]
[1745185685961,2.3805866,1586.9,1586.7,60.0392]
[1745185687349,2.3805866,1586.9,1586.7,59.287]
[1745185687553,2.3805866,1586.9,1586.8,5.294]
[1745185687928,2.3805866,1586.9,1586.8,5.35701142]
[1745185694269,2.3805866,1586.9,1586.8,5.294]
[1745185699983,2.3805866,1586.9,1586.8,5.35700997]
[1745185700182,2.3805866,1586.9,1586.8,5.294]
[1745185701888,2.3805866,1586.9,1586.8,59.259]
[1745185704781,2.3805866,1587.1,1586.8,60.0682]
[1745185705559,3.1519866,1587.1,1586.8,60.0682]
[1745185711297,2.3805866,1586.9,1586.8,60.0682]
[1745185712891,4.37364161,1587.3,1586.8,60.0682]
[1745185713191,2.3805866,1587.1,1586.9,0.06300182]
[1745185715000,2.3805866,1587.1,1586.8,60.0682]
[1745185715170,0.926394,1587.3,1586.9,0.8217]
[1745185715376,0.926394,1587.3,1587.0,0.06300195]
[1745185715377,2.3805866,1587.3,1587.0,0.06300195]
[1745185719295,2.3805866,1587.3,1586.9,1.28460297]
[1745185719784,2.3805866,1587.3,1586.9,0.8217]
[1745185720093,2.3805866,1587.1,1586.9,0.8217]
[1745185720550,2.3805866,1587.1,1586.9,0.88469984]
[1745185720898,0.1,1587.4,1586.9,1.35794607]
[1745185721199,2.3805866,1587.3,1587.0,0.7787]
[1745185721399,2.3805866,1587.3,1587.1,0.06299536]
[1745185721601,2.3805866,1587.3,1587.2,5.293]
[1745185729511,0.1,1587.4,1587.2,5.293]
[1745185729685,0.1,1587.4,1587.2,6.0475]
[1745185729880,2.4805866,1587.4,1587.2,6.0475]
[1745185732919,2.4805866,1587.4,1587.2,5.293]
[1745185733702,0.7592,1587.3,1587.2,5.293]
[1745185733897,1.63317866,1587.3,1587.2,5.293]
[1745185741263,1.71193205,1587.3,1587.2,5.293]
[1745185741442,1.3746,1587.0,1586.3,0.791]
[1745185741620,3.2051866,1586.5,1586.1,0.791]
[1745185741815,3.2051866,1586.5,1586.1,6.791]
[1745185742212,3.2051866,1586.5,1586.2,0.0630267]
[1745185742433,2.3805866,1586.5,1586.2,0.0630267]
[1745185742746,9.2964866,1586.7,1586.3,0.7708]
[1745185742944,9.2964866,1586.7,1586.4,0.0630239]
[1745185743450,6.9159,1586.7,1586.4,0.0630239]
[1745185745111,6.9159,1586.7,1586.3,0.7708]
[1745185745564,6.9159,1586.7,1586.4,59.253]
[1745185746731,0.7759,1586.7,1586.5,0.06302394]
[1745185753353,0.6127,1586.7,1586.5,0.06302394]
[1745185755973,5.15586934,1587.0,1586.5,0.8105]
[1745185756174,5.15586934,1587.0,1586.5,0.87351371]
[1745185756530,5.15586934,1586.8,1586.4,59.253]
[1745185756734,0.7891,1586.7,1586.4,59.253]
[1745185756975,0.7891,1586.7,1586.5,0.06302175]
[1745185759569,1.3391,1586.7,1586.6,5.293]
[1745185764441,1.3391,1586.7,1586.6,59.266]
[1745185765602,0.55,1586.7,1586.6,59.266]
[1745185772953,1.3715,1586.7,1586.6,59.266]
[1745185773276,13.62369474,1586.7,1586.6,59.266]
[1745185773486,19.84730319,1586.7,1586.6,59.266]
[1745185774292,20.31354375,1586.7,1586.6,59.266]
[1745185775381,23.09174258,1586.7,1586.6,59.266]
[1745185779904,16.78935398,1586.7,1586.6,59.266]
[1745185780198,8.98037649,1586.7,1586.6,59.266]
[1745185780397,6.14,1586.9,1586.6,60.0298]
[1745185780398,5.15887649,1586.9,1586.6,60.0298]
[1745185780701,16.08917487,1587.1,1586.7,0.06301403]
[1745185780883,4.24029838,1587.0,1586.7,0.7638]
[1745185782390,4.24029838,1587.0,1586.9,0.83]
[1745185783123,0.55,1587.2,1586.9,0.83]
[1745185783307,0.55,1587.2,1587.0,5.293]
[1745185783516,5.15887649,1587.1,1587.0,5.293]
[1745185785512,6.51157649,1587.1,1587.0,5.293]
[1745185788405,5.70887649,1587.1,1587.0,5.293]
[1745185792829,7.71524073,1587.1,1587.0,5.293]
[1745185793726,7.71524073,1587.1,1587.0,59.259]
[1745185794625,6.52247649,1587.1,1587.0,59.259]
[1745185796122,15.90204249,1587.1,1587.0,59.259]
[1745185796426,21.96327669,1587.1,1587.0,59.259]
[1745185802125,21.96327669,1587.1,1586.3,0.804]
[1745185802126,1.343,1586.8,1586.6,53.969]
[1745185802426,5.23766208,1586.7,1586.6,53.969]
[1745185802595,5.23766208,1586.7,1586.6,59.261]
[1745185804528,5.15887649,1586.7,1586.6,59.261]
[1745185809209,0.55,1586.0,1585.9,5.293]
[1745185809411,0.55,1586.1,1585.9,5.293]
[1745185811948,5.15887649,1586.0,1585.9,5.293]
[1745185819713,5.70887649,1586.0,1585.9,5.293]
[1745185820425,13.79098297,1586.0,1585.9,5.293]
[1745185820944,16.79098297,1586.0,1585.9,5.293]
[1745185821641,17.62028297,1586.0,1585.9,5.293]
[1745185822233,23.76028297,1586.0,1585.9,5.293]
[1745185828169,14.29887649,1586.0,1585.9,5.293]
[1745185828458,21.15404672,1586.0,1585.9,5.293]
[1745185831677,21.15404672,1586.0,1585.9,5.59741342]
[1745185834473,14.84887649,1586.0,1585.9,5.59741342]
[1745185834977,21.15404672,1586.0,1585.9,5.59741342]
[1745185836084,23.86358268,1586.0,1585.9,5.59741342]
[1745185840196,5.15887649,1586.0,1585.9,5.59741342]
[1745185840402,5.15887649,1586.0,1585.9,6.37111342]
[1745185840603,5.15887649,1586.0,1585.9,6.43416472]
[1745185841100,5.70887649,1586.0,1585.9,6.37111342]
[1745185841393,5.70887649,1586.0,1585.9,5.59741342]
[1745185853229,5.15887649,1586.0,1585.9,5.59741342]
[1745185854616,5.70887649,1586.0,1585.9,5.59741342]
[1745185855316,2.93212377,1586.0,1585.9,5.59741342]
[1745185860525,2.38212377,1586.0,1585.9,5.59741342]
[1745185863301,2.38212377,1586.0,1585.9,6.45686271]
[1745185864696,2.38212377,1586.0,1585.9,6.39381342]
[1745185868825,2.38212377,1586.0,1585.9,6.45686193]
[1745185869125,2.38212377,1586.0,1585.9,6.39381342]
[1745185885643,2.38212377,1586.0,1585.9,5.59741342]
[1745185886517,2.93212377,1586.0,1585.9,5.59741342]
[1745185886723,3.30194615,1586.0,1585.9,5.59741342]
[1745185887027,4.06804615,1586.0,1585.9,5.59741342]
[1745185890540,10.20804615,1586.0,1585.9,5.59741342]
[1745185891851,10.28686795,1586.0,1585.9,5.59741342]
[1745185893641,10.76896932,1586.0,1585.9,5.59741342]
[1745185897655,17.07413955,1586.0,1585.9,5.59741342]
[1745185897958,0.55,1585.6,1585.2,0.7574]
[1745185898273,13.85690623,1585.5,1585.4,54.004]
[1745185898563,7.0890083,1585.3,1585.1,54.004]
[1745185898740,1.56866191,1585.2,1585.1,54.004]
[1745185899057,2.03376464,1585.2,1585.1,59.3]
[1745185899253,9.63911135,1585.2,1585.1,59.3]
[1745185899852,22.0874636,1585.2,1585.1,59.3]
[1745185900030,22.00860252,1585.2,1585.1,59.3]
[1745185900740,15.70025027,1585.2,1585.1,59.3]
[1745185901356,16.10317944,1585.2,1585.1,59.3]
[1745185902275,17.71349738,1585.2,1585.1,59.3]
[1745185906544,17.24839465,1585.2,1585.1,59.3]
[1745185908781,16.46749465,1585.2,1585.1,59.3]
[1745185910266,5.16717671,1585.2,1585.1,60.094]
[1745185910480,5.16717671,1585.4,1585.2,0.794]
[1745185910681,5.16717671,1585.6,1585.2,0.794]
[1745185910852,5.16717671,1585.6,1585.4,0.794]
[1745185911168,8.16717671,1585.6,1585.5,5.298]
[1745185911373,8.98389438,1585.6,1585.5,5.298]
[1745185911554,8.98389438,1585.6,1585.5,5.57494057]
[1745185913081,9.53389438,1585.6,1585.5,5.57494057]
[1745185918278,3.0,1585.7,1585.5,5.57494057]
[1745185918480,5.16717671,1585.6,1585.5,5.57494057]
[1745185918988,5.71717671,1585.6,1585.5,5.57494057]
[1745185919188,6.48157671,1585.6,1585.5,5.57494057]
[1745185919387,6.56041913,1585.6,1585.5,5.57494057]
[1745185919555,8.14709973,1585.6,1585.5,5.298]
[1745185919984,8.14709973,1585.6,1585.5,5.56580966]
[1745185921888,8.06825731,1585.6,1585.5,5.56580966]
[1745185926591,8.06825731,1585.6,1585.5,59.58580966]
[1745185935403,5.28468312,1585.6,1585.5,59.58580966]
[1745185935707,3.69800252,1585.6,1585.5,59.58580966]
[1745185939507,2.93360252,1585.6,1585.5,59.58580966]
[1745185939982,2.93360252,1585.6,1585.5,59.318]
[1745185940181,2.93360252,1585.6,1585.5,59.58374169]
[1745185948329,3.07884244,1585.7,1585.5,60.33464169]
[1745185948491,3.0,1585.7,1585.5,60.33464169]
[1745185948692,5.38360252,1585.7,1585.5,60.33464169]
[1745185955501,5.38360252,1585.7,1585.5,60.0689]
[1745185955831,5.38360252,1585.7,1585.6,0.26108955]
[1745185956930,3.0,1585.7,1585.6,0.26108955]
[1745185957120,2.38360252,1585.8,1585.6,0.26108955]
[1745185959046,2.38360252,1585.8,1585.5,60.0689]
[1745185959344,2.38360252,1585.6,1585.5,60.0689]
[1745185959753,2.38360252,1585.6,1585.5,60.32998955]
[1745185966852,2.38360252,1585.6,1585.5,59.57908955]
[1745186003599,3.75780252,1585.6,1585.5,59.57908955]
[1745186003802,4.13358277,1585.6,1585.5,59.57708955]
[1745186004102,10.44034361,1585.6,1585.5,59.57708955]
[1745186004395,6.8574229,1585.5,1585.1,6.0]
[1745186004604,1.3478,1585.3,1585.2,59.309]
[1745186004801,2.12123839,1585.3,1585.2,59.309]
[1745186004981,1.32343839,1585.3,1585.2,59.309]
[1745186005184,11.42919272,1585.3,1585.2,59.309]
[1745186005702,11.50805055,1585.3,1585.2,59.309]
[1745186005926,16.27525559,1585.3,1585.2,59.309]
[1745186006068,16.19639776,1585.3,1585.2,59.309]
[1745186010284,12.07360252,1585.3,1585.2,59.309]
[1745186013721,5.93360252,1585.3,1585.2,59.309]
[1745186014019,6.01245616,1585.3,1585.2,59.309]
[1745186014219,7.32238289,1585.3,1585.2,59.309]
[1745186016825,2.38360252,1585.4,1585.2,59.309]
[1745186017010,2.38360252,1585.4,1585.3,0.7528]
[1745186017190,2.38360252,1585.4,1585.3,0.92700491]
[1745186018298,2.38360252,1585.4,1585.3,0.17420491]
[1745186018499,2.38360252,1585.4,1585.3,5.47020491]
[1745186025606,2.38360252,1585.4,1585.3,59.49120491]
[1745186030834,2.38360252,1585.4,1585.3,60.32130491]
[1745186034813,3.0,1585.7,1585.3,60.32130491]
[1745186035022,2.38360252,1585.5,1585.3,60.32130491]
[1745186037250,2.38360252,1585.5,1585.3,59.49120491]
[1745186037412,2.38360252,1585.5,1585.4,0.7693]
[1745186037812,2.38360252,1585.5,1585.4,0.93436818]
[1745186045267,2.38360252,1585.5,1585.4,0.16506818]
[1745186045433,2.38360252,1585.5,1585.3,59.317]
[1745186045765,2.38360252,1585.5,1585.4,0.16506818]
[1745186045973,2.38360252,1585.5,1585.3,59.317]
[1745186046165,2.38360252,1585.5,1585.4,0.16506818]
[1745186046370,2.38360252,1585.5,1585.3,59.317]
[1745186046570,2.38360252,1585.5,1585.4,0.16506818]
[1745186046739,2.38360252,1585.5,1585.3,59.317]
[1745186046940,2.38360252,1585.5,1585.4,0.16506818]
[1745186047452,2.38360252,1585.5,1585.3,59.317]
[1745186047655,2.38360252,1585.5,1585.4,0.16506818]
[1745186047980,2.38360252,1585.5,1585.3,59.317]
[1745186048163,2.38360252,1585.5,1585.4,0.16506818]
[1745186048677,2.38360252,1585.5,1585.3,59.317]
[1745186048844,2.38360252,1585.5,1585.4,0.16506818]
[1745186049044,2.38360252,1585.5,1585.3,59.317]
[1745186049244,2.38360252,1585.5,1585.4,0.16468127]
[1745186049445,2.38360252,1585.5,1585.3,59.317]
[1745186049774,2.38360252,1585.5,1585.4,0.16468127]
[1745186050147,2.38360252,1585.5,1585.3,59.317]
[1745186050348,2.38360252,1585.5,1585.4,0.16468127]
[1745186050846,2.38360252,1585.5,1585.3,59.317]
[1745186051046,2.38360252,1585.5,1585.4,0.16468127]
[1745186051246,2.38360252,1585.5,1585.3,59.317]